fUSD/lending_fUSD_20250911
["ID","MTS","AMOUNT","RATE_DAILY","PERIOD"]
[384859882,1757596969816,-1000.0,0.00043836,30]
[384859883,1757596969854,-500.0,0.00043836,30]
[384859884,1757596969897,-1000.0,0.00043836,30]
[384859885,1757596969938,-277.35679052,0.00043836,30]
[384859886,1757596969979,-1000.0,0.00043836,30]
[384859887,1757596970020,-600.0,0.00043836,30]
[384859888,1757596970062,-287.61899177,0.00043836,30]
[384859889,1757596970103,-298.26089446,0.00043836,30]
[384859890,1757596970144,-600.0,0.00043836,30]
[384859891,1757596970185,-309.29654756,0.00043836,30]
[384859892,1757596970225,-600.0,0.00043836,30]
[384859893,1757596970265,-320.74051982,0.00043836,30]
[384859894,1757596970305,-332.60791905,0.00043836,30]
[384859895,1757596970344,-600.0,0.00043836,30]
[384859896,1757596970385,-344.91441206,0.00043836,30]
[384859897,1757596970426,-600.0,0.00043836,30]
[384859898,1757596970466,-357.6762453,0.00043836,30]
[384859899,1757596970508,-600.0,0.00043836,30]
[384859900,1757596970552,-370.91026638,0.00043836,30]
[384859901,1757596970593,-384.63394623,0.00043836,30]
[384859902,1757596970637,-398.86540225,0.00043836,30]
[384859903,1757596970677,-151.0,0.00043836,30]
[384859904,1757596970717,-151.0,0.00043836,30]
[384859905,1757596970754,-500.0,0.00043836,30]
[384859906,1757596970794,-500.0,0.00043836,30]
[384859907,1757596970833,-151.0,0.00043836,30]
[384859908,1757596970872,-151.0,0.00043836,30]
[384859909,1757596970910,-500.0,0.00043836,30]
[384859910,1757596970949,-250.0,0.00043836,30]
[384859911,1757596970988,-200.20104714,0.00043836,30]
[384859912,1757596971028,-500.0,0.00043836,30]
[384859913,1757596971067,-151.7508912,0.00043836,30]
[384859914,1757596971107,-250.0,0.00043836,30]
[384859915,1757596971385,-500.0,0.00043836,30]
[384859916,1757596971426,-700.0,0.00043869,30]
[384859917,1757596971467,-500.0,0.00044207,30]
[384859918,1757596971506,-502.60261082,0.00044321,30]
[384859919,1757596971548,-700.0,0.00044527,30]
[384859920,1757596971586,-500.0,0.00044605,30]
[384859921,1757596971625,-1353.34605345,0.00044693,30]
[384859922,1757596971665,-544.9752115,0.00044927,30]
[384859923,1757596971706,-45293.15426399,0.00047,120]
[384859924,1757596971745,-500000.0,0.00047,120]
[384859925,1757596971783,-2205.0,0.00047,120]
[384859926,1757596971824,-10000.0,0.00047,120]
[384859927,1757596971863,-10000.0,0.00047,90]
[384859928,1757596971902,-173.40745218,0.00047,120]
[384859929,1757596971938,-3483.0,0.00047,30]
[384859930,1757596971976,-10221.0,0.00047,120]
[384859931,1757596972015,-1019.55,0.00047,120]
[384859932,1757596972055,-484.17,0.00047,30]
[384859933,1757596972096,-50000.0,0.00047,33]
[384859934,1757596972135,-150.0,0.00047098,120]
[384859935,1757596972174,-289.0,0.00047121,90]
[384859936,1757596972214,-20140.45,0.00047166,120]
[384859937,1757596972251,-20140.451,0.00047166,120]
[384859938,1757596972289,-20140.451,0.00047166,120]
[384859939,1757596972329,-20140.451,0.00047166,120]
[384859940,1757596972370,-20140.451,0.00047166,120]
[384859941,1757596972411,-2266.81188961,0.00047445,120]
[384859942,1757596972456,-2093.10382335,0.0004745,120]
[384859943,1757596972498,-150.0,0.00047486,120]
[384859944,1757596972542,-1000.0,0.00047499,32]
[384859945,1757596972583,-10000.0,0.000475,120]
[384859946,1757596972624,-8602.33988768,0.000475,120]
[384859947,1757596972663,-1000.0,0.000475,120]
[384859948,1757596972703,-29464.07999228,0.000475,120]
[384859949,1757596972742,-8000.0,0.000475,120]
[384859950,1757596972780,-3000.0,0.00047664,60]
[384859951,1757596972819,-1000.0,0.0004767,60]
[384859952,1757596972858,-150.0,0.00047694,120]
[384859953,1757596972908,-2000.0,0.000477,120]
[384859954,1757596972948,-2000.0,0.000477,120]
[384859955,1757596972987,-187.0,0.000477,120]
[384859956,1757596973026,-20003.7876643,0.000478,30]
[384859957,1757596973064,-6686.29763753,0.00047811,120]
[384859958,1757596973102,-1450.68158367,0.00047894,31]
[384859959,1757596973140,-1554.69,0.000479,120]
[384859960,1757596973178,-300.0,0.000479,32]
[384859961,1757596973216,-1165.58,0.000479,120]
[384859962,1757596973255,-150.0,0.00047916,120]
[384859963,1757596973298,-1100.0,0.00047938,60]
[384859964,1757596973340,-150.0,0.00047945,120]
[384859965,1757596973391,-856.2459617,0.0004797,30]
[384859966,1757596973434,-1000.0,0.00047998,120]
[384859967,1757596973476,-1000.0,0.00047999,120]
[384859968,1757596973522,-1765.0,0.00047999,120]
[384859969,1757596973566,-1000.0,0.00047999,30]
[384859970,1757596973613,-1000.0,0.00047999,48]
[384859971,1757596973660,-50000.0,0.00048,48]
[384859972,1757596973703,-50000.0,0.00048,33]
[384859973,1757596973744,-4993.50789779,0.00048,30]
[384859974,1757596973786,-153.06003854,0.00048,120]
[384859975,1757596973827,-1091.38890968,0.00048,120]
[384859976,1757596973869,-1000.0,0.00048,120]
[384859977,1757596973913,-200.0,0.00048,120]
[384859978,1757596973955,-1000000.0,0.00048,120]
[384859979,1757596973996,-1201.0,0.00048,120]
[384859980,1757596974037,-597.09009972,0.00048,30]
[384859981,1757596974078,-404.80865522,0.00048,30]
[384859982,1757596974116,-2001.21140549,0.00048,120]
[384859983,1757596974156,-5000.0,0.00048,120]
[384859984,1757596974194,-11000.0,0.00048,120]
[384859985,1757596974234,-10000.0,0.00048,120]
[384859986,1757596974273,-1782.43582735,0.00048,120]
[384859987,1757596974313,-356.95657556,0.00048,120]
[384859988,1757596974354,-4286.56,0.00048,120]
[384859989,1757596974394,-575.21,0.00048,120]
[384859990,1757596974436,-1000000.0,0.00048,120]
[384859991,1757596974477,-1000000.0,0.00048,120]
[384859992,1757596974522,-503.89408504,0.00048,120]
[384859993,1757596974564,-500.0,0.00048,120]
[384859994,1757596974605,-860.54700924,0.00048,120]
[384859995,1757596974646,-4064.60744105,0.00048,120]
[384859996,1757596974689,-5548.42433308,0.00048,120]
[384859997,1757596974731,-2036.09096115,0.00048,120]
[384859998,1757596974771,-3570.24561316,0.00048,120]
[384859999,1757596974813,-204.56,0.00048,120]
[384860000,1757596974857,-1776.17561173,0.0004805,120]
[384860001,1757596974902,-150.0,0.00048129,120]
[384860002,1757596974957,-156.0,0.000482,120]
[384860003,1757596975005,-150.0,0.000482,120]
[384860004,1757596975049,-327.35162757,0.00048316,60]
[384860005,1757596975091,-397.63634541,0.00048316,60]
[384860006,1757596975132,-1087.0,0.00048328,30]
[384860007,1757596975173,-152.0,0.000484,120]
[384860008,1757596975214,-1000.0,0.000485,120]
[384860009,1757596975255,-152.38309633,0.000485,120]
[384860010,1757596975295,-5372.13233743,0.000485,120]
[384860011,1757596975336,-852.0,0.0004855,120]
[384860012,1757596975377,-3000.0,0.0004876,60]
[384860013,1757596975729,-1090.40476565,0.00048799,120]
[384860014,1757596975771,-1090.93307706,0.00048799,120]
[384860015,1757596975812,-15496.28144036,0.000488,120]
[384860016,1757596975853,-16011.95745382,0.000488,120]
[384860017,1757596975892,-13435.77988896,0.0004885,120]
[384860018,1757596975931,-2000.0,0.0004889,42]
[384860019,1757596975970,-3421.62693396,0.0004889,36]
[384860020,1757596976011,-2000.0,0.0004896,43]
[384860021,1757596976051,-150.0,0.00048991,120]
[384860022,1757596976089,-1000.0,0.00048999,120]
[384860023,1757596976130,-50000.0,0.00049,49]
[384860024,1757596976167,-321.43343456,0.00049,120]
[384860025,1757596976206,-1293.47985225,0.00049,120]
[384860026,1757596976244,-20000.0,0.00049,120]
[384860027,1757596976281,-1000.0,0.00049,120]
[384860028,1757596976321,-813200.45263401,0.00049,120]
[384860029,1757597007438,-200.0,0.00034,30]
[384860030,1757597007503,-280.0,0.000374,30]
[384860031,1757597007578,-391.0,0.0004114,30]
[384860032,1757597007630,-500.0,0.00043836,30]
[384860033,1757597007677,-250.0,0.00043836,30]
[384860034,1757597007721,-500.0,0.00043836,30]
[384860035,1757597007766,-500.0,0.00043836,30]
[384860036,1757597007817,-500.0,0.00043836,30]
[384860037,1757597007869,-250.0,0.00043836,30]
[384860038,1757597007920,-500.0,0.00043836,30]
[384860039,1757597007968,-500.0,0.00043836,30]
[384860040,1757597008013,-250.0,0.00043836,30]
[384860041,1757597008059,-1000.0,0.00043836,30]
[384860042,1757597008107,-500.0,0.00043836,30]
[384860043,1757597008152,-1000.0,0.00043836,30]
[384860044,1757597008194,-500.0,0.00043836,30]
[384860045,1757597008235,-1000.0,0.00043836,30]
[384860046,1757597008277,-500.0,0.00043836,30]
[384860047,1757597008329,-1000.0,0.00043836,30]
[384860048,1757597008382,-500.0,0.00043836,30]
[384860049,1757597008430,-1000.0,0.00043836,30]
[384860050,1757597008473,-548.0,0.00045254,60]
[384860051,1757597008514,-1646.95853001,0.0004545,120]
[384860052,1757597008563,-327.35162757,0.00048316,60]
[384860053,1757597008612,-300.0,0.0004881,120]
[384860054,1757597008655,-186799.54736599,0.00049,120]
[384860055,1757597008696,-10131.24378255,0.00049,120]
[384860056,1757597008734,-168.58698201,0.00049,30]
[384860057,1757597008771,-2613.0,0.00049,120]
[384860058,1757597008812,-832.8778053,0.00049,60]
[384860059,1757597008854,-3200.0,0.00049,120]
[384860060,1757597008893,-10221.0,0.00049,120]
[384860061,1757597008931,-69052.11337128,0.00049,120]
[384860062,1757597008968,-150.0,0.00049015,30]
[384860063,1757597009007,-150.0,0.00049015,30]
[384860064,1757597009045,-187.86,0.00049015,30]
[384860065,1757597009312,-218.11503364,0.00049015,30]
[384860066,1757597009356,-153.38961427,0.00049015,30]
[384860067,1757597009397,-150.0,0.00049015,30]
[384860068,1757597009439,-170.38227288,0.00049015,30]
[384860069,1757597009479,-184.39062418,0.00049015,30]
[384860070,1757597009521,-150.0,0.00049021,120]
[384860071,1757597009565,-1100.0,0.00049034,60]
[384860072,1757597009607,-6460.8850539,0.00049241,30]
[384860073,1757597009647,-2587.83770939,0.00049241,30]
[384860074,1757597009693,-1628.3025,0.00049314,120]
[384860075,1757597009743,-300.0,0.00049315,30]
[384860076,1757597009784,-312.0,0.00049315,30]
[384860077,1757597009825,-300.0,0.00049315,30]
[384860078,1757597009869,-150.0,0.00049315,120]
[384860079,1757597009913,-500.0,0.00049315,30]
[384860080,1757597009957,-500.0,0.00049315,30]
[384860081,1757597010000,-250000.0,0.000495,30]
[384860082,1757597010041,-5723.85789235,0.000495,30]
[384860083,1757597010082,-896.97069278,0.000495,120]
[384860084,1757597010122,-189.14851891,0.000495,120]
[384860085,1757597010162,-2000.0,0.0004952,51]
[384860086,1757597010201,-2000.0,0.0004968,48]
[384860087,1757597010241,-768.0,0.00049779,60]
[384860088,1757597010283,-575.40472137,0.000498,30]
[384860089,1757597010324,-515.0,0.000498,120]
[384860090,1757597010364,-1000.0,0.000498,120]
[384860091,1757597010407,-3000.0,0.00049856,60]
[384860093,1757597010450,-2000.0,0.0004987,55]
[384860094,1757597010492,-360.0,0.0004999,120]
[384860095,1757597010533,-1000.0,0.00049999,120]
[384860096,1757597010581,-50000.0,0.0005,50]
[384860097,1757597010620,-219.6699682,0.0005,30]
[384860098,1757597010665,-327185.18708612,0.0005,30]
[384860099,1757597010706,-500.0,0.0005,30]
[384860100,1757597010746,-10000.0,0.0005,30]
[384860101,1757597010786,-153.88468453,0.0005,120]
[384860102,1757597010826,-20000.0,0.0005,120]
[384860103,1757597010867,-522.7436445,0.0005,120]
[384860104,1757597010906,-201.1,0.0005,120]
[384860105,1757597010946,-200.0,0.0005,120]
[384860106,1757597010986,-1305.16347928,0.0005,120]
[384860107,1757597011027,-500000.0,0.0005,120]
[384860108,1757597011068,-500000.0,0.0005,120]
[384860109,1757597011108,-500000.0,0.0005,120]
[384860110,1757597011148,-799.62551026,0.0005,120]
[384860111,1757597011186,-2412.793,0.0005,120]
[384860112,1757597011224,-25000.0,0.0005,120]
[384860113,1757597011263,-9331.0,0.0005,30]
[384860114,1757597011303,-877.52503714,0.0005,120]
[384860115,1757597011341,-1000000.0,0.0005,120]
[384860116,1757597011383,-150.0,0.0005,120]
[384860117,1757597011422,-36710.1,0.0005,120]
[384860118,1757597011462,-250.13510392,0.0005,120]
[384860119,1757597011504,-152.0,0.0005,120]
[384860120,1757597011545,-1034.48007738,0.0005,120]
[384860121,1757597011584,-3587.58,0.0005,60]
[384860122,1757597011623,-150.0,0.00050029,120]
[384860123,1757597011664,-1100.0,0.0005013,60]
[384860124,1757597011701,-400000.0,0.00050222,30]
[384860125,1757597011739,-211.69,0.000505,120]
[384860126,1757597011776,-2208.978,0.0005057,90]
[384860127,1757597011812,-1130.68226281,0.00050575,90]
[384860128,1757597011850,-150.0,0.00050684,120]
[384860129,1757597011886,-1087.0,0.00050744,30]
[384860130,1757597011926,-13435.77988896,0.0005085,120]
[384860131,1757597011964,-3000.0,0.00050952,60]
[384860132,1757597012001,-20000.0,0.00051,120]
[384860133,1757597012038,-500000.0,0.00051,120]
[384860134,1757597012077,-10221.0,0.00051,120]
[384860135,1757597012117,-11096.84866617,0.00051,120]
[384860136,1757597012160,-4072.18192229,0.00051,120]
[384860137,1757597012200,-31500.0,0.00051,120]
[384860138,1757597012238,-499.14365607,0.00051226,60]
[384860139,1757597012276,-156.0,0.000516,120]
[384860140,1757597012315,-152.0,0.000516,120]
[384860141,1757597012354,-51016.0,0.0005165,120]
[384860142,1757597013642,397.63634541,0.00048316,60]
[384860143,1757597013791,500.0,0.00051481,30]
[384860144,1757597014131,500.0,0.00051481,30]
[384860145,1757597014263,500.0,0.00051481,30]
[384860146,1757597014366,549.03,0.00051481,30]
[384860147,1757597014814,500.0,0.00051481,30]
[384860148,1757597014914,500.0,0.00051481,30]
[384860149,1757597015082,500.0,0.00051481,30]
[384860150,1757597015175,500.0,0.00051481,30]
[384860151,1757597015630,150.0,0.00045922,120]
[384860152,1757597015675,500.0,0.00051481,30]
[384860153,1757597015753,500.0,0.00051481,30]
[384860154,1757597015874,500.0,0.00051481,30]
[384860155,1757597016648,500.0,0.00051481,30]
[384860156,1757597016895,500.0,0.00051481,30]
[384860157,1757597016965,254.0160538,0.00051481,30]
[384860158,1757597017201,150.0,0.00051481,30]
[384860159,1757597017257,150.0,0.00051481,30]
[384860160,1757597017464,200.0,0.00051481,30]
[384860161,1757597017994,500.0,0.00051481,30]
[384860162,1757597018060,500.0,0.00051481,30]
[384860165,1757597042425,-311.0,0.000469,30]
[384860166,1757597042475,-300.0,0.000479,32]
[384860167,1757597042520,-154.82575253,0.00051481,30]
[384860168,1757597042567,-150.0,0.00051481,30]
[384860169,1757597042613,-725.0,0.00051481,30]
[384860170,1757597042657,-725.0,0.00051481,30]
[384860171,1757597042698,-725.0,0.00051481,30]
[384860172,1757597042739,-725.0,0.00051481,30]
[384860173,1757597042780,-725.0,0.00051481,30]
[384860175,1757597042821,-725.0,0.00051481,30]
[384860176,1757597042863,-725.0,0.00051481,30]
[384860177,1757597042905,-725.0,0.00051481,30]
[384860178,1757597042944,-725.0,0.00051481,30]
[384860179,1757597042983,-725.0,0.00051481,30]
[384860180,1757597043026,-725.0,0.00051481,30]
[384860181,1757597043070,-725.0,0.00051481,30]
[384860182,1757597043111,-725.0,0.00051481,30]
[384860183,1757597043151,-725.0,0.00051481,30]
[384860184,1757597043264,-725.0,0.00051481,30]
[384860185,1757597043306,-725.0,0.00051481,30]
[384860186,1757597043351,-725.0,0.00051481,30]
[384860187,1757597043397,-725.0,0.00051481,30]
[384860188,1757597043444,-725.0,0.00051481,30]
[384860189,1757597043490,-725.0,0.00051481,30]
[384860190,1757597043535,-725.0,0.00051481,30]
[384860191,1757597043583,-725.0,0.00051481,30]
[384860192,1757597043628,-725.0,0.00051481,30]
[384860193,1757597043674,-738.69204531,0.00051481,30]
[384860194,1757597043719,-500.0,0.00051481,30]
[384860195,1757597043761,-500.0,0.00051481,30]
[384860196,1757597043804,-500.0,0.00051481,30]
[384860197,1757597043846,-250.0,0.00051481,30]
[384860198,1757597043889,-150.0,0.00051481,30]
[384860199,1757597043931,-150.0,0.00051481,30]
[384860200,1757597043974,-150.0,0.00051481,30]
[384860201,1757597044020,-150.0,0.00051481,30]
[384860202,1757597044063,-166.02713408,0.00051481,30]
[384860203,1757597044108,-500.0,0.00051481,30]
[384860204,1757597044152,-500.0,0.00051481,30]
[384860205,1757597044196,-500.0,0.00051481,30]
[384860206,1757597044240,-318.96462919,0.00051481,30]
[384860207,1757597044281,-150.0,0.00051481,30]
[384860208,1757597044322,-150.0,0.00051481,30]
[384860209,1757597044364,-150.0,0.00051481,30]
[384860210,1757597044409,-150.0,0.00051481,30]
[384860211,1757597044451,-150.0,0.00051481,30]
[384860212,1757597044492,-236.99789271,0.00051481,30]
[384860213,1757597044532,-150.0,0.00051481,30]
[384860214,1757597044579,-150.0,0.00051481,30]
[384860215,1757597044621,-150.0,0.00051481,30]
[384860216,1757597044662,-500.0,0.00051481,30]
[384860217,1757597044702,-500.0,0.00051481,30]
[384860218,1757597044743,-500.0,0.00051481,30]
[384860219,1757597044786,-205.99482062,0.00051481,30]
[384860220,1757597044827,-500.0,0.00051481,30]
[384860221,1757597044867,-501.75418777,0.00051481,30]
[384860222,1757597044907,-500.0,0.00051481,30]
[384860223,1757597044953,-500.0,0.00051481,30]
[384860224,1757597044999,-500.0,0.00051481,30]
[384860225,1757597045039,-500.0,0.00051481,30]
[384860226,1757597045079,-500.0,0.00051481,30]
[384860227,1757597045120,-500.0,0.00051481,30]
[384860228,1757597045160,-500.0,0.00051481,30]
[384860229,1757597045198,-560.98049297,0.00051481,30]
[384860230,1757597045235,-150.0,0.00051481,30]
[384860231,1757597045272,-150.0,0.00051481,30]
[384860232,1757597045309,-150.0,0.00051481,30]
[384860233,1757597045348,-150.0,0.00051481,30]
[384860234,1757597045388,-280.21387238,0.0005188,120]
[384860235,1757597045429,-1259.0,0.00051946,120]
[384860236,1757597045470,-618.379,0.00051946,120]
[384860237,1757597045511,-1007.553,0.00051946,120]
[384860238,1757597045551,-1579.0,0.00051946,120]
[384860239,1757597045590,-568.0,0.00051946,120]
[384860240,1757597045628,-601.0,0.00051946,120]
[384860241,1757597045671,-1302.0,0.00051946,120]
[384860242,1757597045710,-6170.0,0.00051946,120]
[384860243,1757597045750,-4167.0,0.00051946,120]
[384860244,1757597045790,-6055.601,0.00051946,120]
[384860245,1757597045830,-897.0,0.00051946,120]
[384860246,1757597045870,-270.95,0.00051946,120]
[384860247,1757597045910,-1000.0,0.00051999,120]
[384860248,1757597045948,-6000.0,0.00052,30]
[384860249,1757597045986,-500000.0,0.00052,120]
[384860250,1757597046025,-20000.0,0.00052,120]
[384860251,1757597046065,-300.0,0.00052,120]
[384860252,1757597046103,-204.56,0.00052,120]
[384860253,1757597046142,-1734.77499492,0.00052048,60]
[384860254,1757597046180,-1809.225,0.00052054,120]
[384860255,1757597046217,-185.69233287,0.00052054,120]
[384860256,1757597046254,-202.75,0.00052055,120]
[384860257,1757597046293,-2000.0,0.0005206,48]
[384860258,1757597046331,-780.62,0.00052321,120]
[384860259,1757597046374,-20000.0,0.000525,120]
[384860260,1757597046412,-2000.0,0.0005263,51]
[384860261,1757597046451,-2000.0,0.0005263,55]
[384860262,1757597046493,-597.88754974,0.00052712,120]
[384860263,1757597046534,-13435.77988896,0.0005285,120]
[384860264,1757597046578,-500.0,0.00052851,30]
[384860265,1757597046618,-20000.0,0.00053,120]
[384860266,1757597046658,-1000.0,0.00053,60]
[384860267,1757597046699,-180000.0,0.00053,120]
[384860268,1757597046739,-10221.0,0.00053,120]
[384860269,1757597046779,-278.58940492,0.00053197,62]
[384860270,1757597046818,-152.0,0.000532,120]
[384860271,1757597046859,-1500.0,0.000535,120]
[384860272,1757597046898,-50000.0,0.0005385,120]
[384860273,1757597046938,-350.0,0.0005388,120]
[384860274,1757597046978,-2000.0,0.0005398,51]
[384860275,1757597047020,-20000.0,0.00054,120]
[384860276,1757597047061,-20000.0,0.00054,120]
[384860277,1757597047102,-200.0,0.00054,120]
[384860278,1757597047142,-706.25957587,0.00054,120]
[384860279,1757597047182,-50000.0,0.00054,120]
[384860280,1757597047223,-13871.06083271,0.00054,120]
[384860281,1757597047263,-5090.22740286,0.00054,120]
[384860282,1757597047303,-450.0,0.00054221,30]
[384860283,1757597047343,-4000.0,0.0005444,48]
[384860284,1757597047383,-4000.0,0.0005444,51]
[384860285,1757597048150,150.0,0.00051481,30]
[384860286,1757597048326,250.0,0.00051481,30]
[384860287,1757597048785,150.0,0.00051481,30]
[384860288,1757597048934,166.56557859,0.00051995,120]
[384860289,1757597049081,150.0,0.00051481,30]
[384860290,1757597049167,150.0,0.00051481,30]
[384860291,1757597049245,200.0,0.00051481,30]
[384860292,1757597049706,280.0,0.000374,30]
[384860293,1757597049793,1333.0,0.00051481,30]
[384860294,1757597049876,1333.0,0.00051481,30]
[384860295,1757597050679,391.0,0.0004114,30]
[384860296,1757597051123,1333.0,0.00051481,30]
[384860297,1757597051257,1333.0,0.00051481,30]
[384860298,1757597051416,193.67,0.000302,30]
[384860299,1757597051467,1333.0,0.00051481,30]
[384860300,1757597051519,548.0,0.00045254,60]
[384860301,1757597051585,1333.0,0.00051481,30]
[384860302,1757597051693,193.67,0.000316,30]
[384860303,1757597051742,1333.0,0.00051481,30]
[384860304,1757597051921,1333.0,0.00051481,30]
[384860305,1757597051968,193.67,0.000334,30]
[384860306,1757597052028,1333.0,0.00051481,30]
[384860307,1757597052096,1333.0,0.00051481,30]
[384860308,1757597052245,193.67,0.000351,30]
[384860309,1757597052325,768.0,0.00049779,60]
[384860310,1757597052388,1333.0,0.00051481,30]
[384860317,1757597108876,31761.96821521,0.0002,2]
[384860318,1757597108904,62318.92940681,0.0002,2]
[384860319,1757597108932,962766.92046251,0.0002,2]
[384860320,1757597108957,334121.51880567,0.0002,2]
[384860323,1757597131141,-225.23799484,0.00021,2]
[384860324,1757597133879,-170.37,0.00021,2]
[384860326,1757597137376,-151.0,0.00021,2]
[384860330,1757597201996,-688.90831957,0.00020555,2]
[384860331,1757597204747,-273.30179508,0.00020555,2]
[384860334,1757597210649,-158.25,0.00020555,2]
[384860335,1757597213242,-753.83,0.00020555,2]
[384860336,1757597214844,-1158.32636891,0.00020555,2]
[384860337,1757597217011,-840.84649775,0.00020555,2]
[384860338,1757597218566,-447.99235877,0.00020555,2]
[384860339,1757597220802,-939.00764123,0.00020555,2]
[384860340,1757597223434,-190.42363109,0.00020555,2]
[384860345,1757597279923,588928.81018793,0.0002,2]
[384860357,1757597358126,-4344.623808,0.00020555,2]
[384860378,1757597432015,-264.35011601,0.00020461,2]
[384860379,1757597432025,-151.0,0.00020463,2]
[384860380,1757597432035,-1180.479637,0.00020555,2]
[384860381,1757597432045,-300.0,0.00020849,2]
[384860382,1757597432055,-300.0,0.00020849,2]
[384860383,1757597432064,-300.0,0.00020849,2]
[384860384,1757597432073,-1200.0,0.00020849,2]
[384860385,1757597432082,-5699.0981871,0.0002085,2]
[384860386,1757597432239,-17826.9260051,0.0002085,2]
[384860387,1757597432250,-29868.60845714,0.00021,2]
[384860388,1757597432260,-1100.0,0.00021999,2]
[384860389,1757597432269,-780.60555341,0.00022,7]
[384860390,1757597432278,-250.0,0.00022611,2]
[384860391,1757597432287,-150.0,0.00022611,2]
[384860392,1757597432297,-1680.0,0.0002279,2]
[384860393,1757597432307,-622.24238221,0.00023,7]
[384860394,1757597432316,-150.0,0.00023288,2]
[384860395,1757597432326,-151.0,0.00023836,2]
[384860396,1757597432336,-260.10145696,0.00024,2]
[384860397,1757597432345,-5000.00879827,0.00024,5]
[384860398,1757597432355,-155.42281418,0.00024384,2]
[384860399,1757597432364,-178.68,0.00024658,2]
[384860400,1757597432373,-409.3400388,0.00024681,2]
[384860401,1757597432382,-3357.44028324,0.000249,2]
[384860402,1757597432392,-2351.0,0.00024913,2]
[384860403,1757597432401,-171.0,0.00025,7]
[384860404,1757597432410,-759.57386461,0.00025,7]
[384860406,1757597432419,-160.42,0.00025711,2]
[384860407,1757597432429,-171.0,0.0002589,7]
[384860408,1757597432438,-1000.0,0.00025934,2]
[384860410,1757597432447,-150.0,0.00025944,7]
[384860412,1757597432457,-1851.91,0.00025976,2]
[384860414,1757597432466,-254.44,0.00026032,2]
[384860416,1757597432475,-253.84,0.00026076,2]
[384860419,1757597432487,-1000.0,0.00026347,2]
[384860421,1757597432507,-1000.0,0.00026438,7]
[384860423,1757597432526,-1098.56084645,0.00026565,2]
[384860424,1757597432545,-1000.0,0.0002663,7]
[384860426,1757597432554,-800.0,0.000267,9]
[384860428,1757597432563,-1700.0,0.000268,9]
[384860430,1757597432573,-1000.0,0.00026821,7]
[384860432,1757597432582,-2600.0,0.000269,9]
[384860434,1757597432591,-212.89373682,0.00026934,2]
[384860436,1757597432601,-160.0,0.00026934,2]
[384860438,1757597432610,-515.37529716,0.00026934,2]
[384860440,1757597432620,-160.0,0.00026934,2]
[384860442,1757597432629,-825.02049824,0.00026975,2]
[384860444,1757597432639,-355.0,0.00027,2]
[384860446,1757597432648,-1000.0,0.00027013,7]
[384860448,1757597432660,-200.0,0.000271,7]
[384860451,1757597432670,-1089.33790272,0.00027122,2]
[384860454,1757597432679,-522.0,0.00027137,2]
[384860456,1757597432688,-231.9639,0.00027197,2]
[384860459,1757597432698,-1000.0,0.00027205,7]
[384860461,1757597432707,-905.0,0.00027232,2]
[384860463,1757597432716,-168.0,0.00027243,7]
[384860465,1757597432725,-168.0,0.00027257,7]